bitfinex-derivatives/quotes_BTCF0:USTF0_20251118
["timestamp","ask_amount","ask_price","bid_price","bid_amount"]
[1763491208395,0.3608,93398.0,93397.0,0.0437]
[1763491208792,0.3608,93416.0,93405.0,0.1508278]
[1763491208992,0.3608,93432.0,93405.0,0.7701078]
[1763491209199,0.35131205,93432.0,93431.0,0.0437]
[1763491209495,0.3608,93447.0,93445.0,0.0437]
[1763491209984,0.3608,93447.0,93445.0,0.30214]
[1763491210494,0.3608,93447.0,93436.0,0.24104914]
[1763491210495,0.03984,93437.0,93436.0,0.00016058]
[1763491210796,0.03984,93437.0,93436.0,0.04386058]
[1763491211888,0.03984,93437.0,93436.0,0.00016058]
[1763491212088,0.00219803,93440.0,93439.0,0.0437]
[1763491212282,0.36206754,93446.0,93445.0,0.05705]
[1763491212895,0.36106754,93446.0,93445.0,0.05705]
[1763491213584,0.36206754,93446.0,93445.0,0.1641319]
[1763491213787,0.36206754,93446.0,93445.0,0.05705]
[1763491214893,0.36306754,93446.0,93445.0,0.05705]
[1763491215294,0.00226754,93446.0,93445.0,0.05705]
[1763491215896,0.04210754,93446.0,93445.0,0.05705]
[1763491216292,0.02218754,93446.0,93445.0,0.05705]
[1763491216492,0.00226754,93446.0,93445.0,0.05705]
[1763491216701,0.04210754,93446.0,93445.0,0.05705]
[1763491216892,0.1469272,93441.0,93440.0,0.02146]
[1763491217691,0.1469311,93437.0,93436.0,0.00016058]
[1763491217892,0.5077311,93437.0,93436.0,0.00016058]
[1763491218086,0.5077311,93437.0,93436.0,0.02162058]
[1763491218293,0.40064,93437.0,93436.0,0.04386058]
[1763491219001,0.40064,93437.0,93436.0,0.00016058]
[1763491219301,0.40064,93437.0,93420.0,0.05705]
[1763491219302,0.03984,93421.0,93420.0,0.05705]
[1763491219597,0.01992,93421.0,93420.0,0.05705]
[1763491220101,0.1270294,93421.0,93420.0,0.05705]
[1763491220302,0.1469494,93421.0,93420.0,0.05805]
[1763491220597,0.1469494,93421.0,93420.0,0.001]
[1763491221796,0.04362,93412.0,93385.0,0.3608]
[1763491221991,0.1259093,93387.0,93386.0,0.0434]
[1763491222188,0.01876,93387.0,93386.0,0.0434]
[1763491222495,0.00219803,93390.0,93389.0,0.0434]
[1763491222692,0.1258862,93407.0,93406.0,0.0434]
[1763491222999,1.0176,93407.0,93406.0,0.0434]
[1763491223693,0.1446558,93398.0,93397.0,0.00016058]
[1763491223898,0.5054558,93398.0,93397.0,0.00016058]
[1763491224297,0.03752,93375.0,93374.0,0.0215]
[1763491224502,0.39832,93375.0,93374.0,0.0434]
[1763491225603,0.02095803,93370.0,93369.0,0.0215]
[1763491225805,0.02095803,93370.0,93369.0,0.0434]
[1763491226414,0.00219803,93370.0,93369.0,0.0434]
[1763491228220,0.02095803,93370.0,93369.0,0.0434]
[1763491228410,0.00219803,93370.0,93369.0,0.0434]
[1763491230518,0.3608,93375.0,93374.0,0.04581]
[1763491230820,0.36096058,93384.0,93383.0,0.04581]
[1763491231124,0.00016058,93384.0,93383.0,0.04581]
[1763491232920,0.01892058,93384.0,93383.0,0.04581]
[1763491233119,0.03768058,93384.0,93383.0,0.04581]
[1763491233822,0.03752,93376.0,93375.0,0.30433]
[1763491234023,0.36299803,93380.0,93379.0,0.05848]
[1763491235522,0.38175803,93380.0,93379.0,0.05848]
[1763491235922,0.47015443,93380.0,93379.0,0.05848]
[1763491236116,0.36299803,93380.0,93379.0,0.05848]
[1763491236324,0.00016058,93384.0,93383.0,0.04581]
[1763491237027,0.03768058,93384.0,93383.0,0.04581]
[1763491237417,0.03768058,93384.0,93383.0,0.02326]
[1763491237624,0.00016058,93384.0,93383.0,0.04581]
[1763491238217,5.8e-07,93384.0,93383.0,0.04581]
[1763491238417,0.5057734,93401.0,93400.0,0.04581]
[1763491238618,0.5057734,93401.0,93400.0,0.02326]
[1763491239114,0.5057734,93401.0,93400.0,0.04581]
[1763491239319,0.3608,93401.0,93400.0,0.04581]
[1763491239516,0.1070936,93435.0,93408.0,0.1071236]
[1763491239517,0.3608,93409.0,93408.0,0.1071236]
[1763491239722,0.3608,93409.0,93408.0,0.1529343]
[1763491239929,0.1071171,93415.0,93414.0,0.04581]
[1763491240529,0.1260371,93415.0,93414.0,0.04581]
[1763491240731,0.03784,93413.0,93412.0,0.01267]
[1763491241024,0.01892,93405.0,93404.0,0.40661]
[1763491241222,0.3608,93417.0,93404.0,0.3608]
[1763491241427,0.03784,93413.0,93412.0,0.01267]
[1763491242027,0.03784,93413.0,93412.0,0.03593]
[1763491242423,0.1260492,93404.0,93403.0,0.04581]
[1763491242623,0.01892,93404.0,93403.0,0.04581]
[1763491242823,0.1071258,93407.0,93406.0,0.04581]
[1763491243024,0.00219803,93410.0,93409.0,0.04581]
[1763491243421,0.00219803,93410.0,93409.0,0.1529332]
[1763491243621,0.002,93413.0,93412.0,0.1655997]
[1763491243827,0.00016058,93418.0,93417.0,0.152924]
[1763491244428,0.4679014,93428.0,93427.0,0.04581]
[1763491244818,0.3608,93428.0,93427.0,0.04581]
[1763491245733,0.4679014,93428.0,93427.0,0.04581]
[1763491245926,0.4888214,93428.0,93427.0,0.04581]
[1763491246428,0.5097414,93428.0,93427.0,0.04581]
[1763491246628,0.5117414,93428.0,93427.0,0.04581]
[1763491247135,0.5137414,93428.0,93427.0,0.04581]
[1763491247633,0.3648,93428.0,93427.0,0.04581]
[1763491247931,0.004,93428.0,93427.0,0.04581]
[1763491249024,0.00016028,93437.0,93436.0,0.04581]
[1763491249228,0.3608,93456.0,93445.0,0.05848]
[1763491249526,0.40264,93456.0,93455.0,0.04581]
[1763491249931,0.3608,93456.0,93445.0,0.01267]
[1763491250125,0.02311803,93450.0,93449.0,0.04581]
[1763491250731,0.00219803,93450.0,93449.0,0.04581]
[1763491251424,0.00319803,93450.0,93449.0,0.04581]
[1763491251630,0.001,93450.0,93449.0,0.04581]
[1763491252227,0.04184,93447.0,93446.0,0.3608]
[1763491252422,0.00319803,93450.0,93441.0,0.00016058]
[1763491252423,0.00319803,93450.0,93449.0,0.04581]
[1763491252728,0.15311423,93450.0,93449.0,0.04581]
[1763491253029,0.15311423,93450.0,93449.0,0.02326]
[1763491253426,0.15211423,93450.0,93449.0,0.02326]
[1763491254021,0.1489207,93446.0,93445.0,0.03593]
[1763491254227,0.5097207,93446.0,93445.0,0.03593]
[1763491254628,0.5097207,93446.0,93445.0,0.05848]
[1763491254829,0.1070853,93442.0,93441.0,0.04597058]
[1763491255028,0.002,93450.0,93449.0,0.1528873]
[1763491255339,0.40504,93465.0,93464.0,0.04581]
[1763491255631,0.40504,93477.0,93476.0,0.02326]
[1763491256233,0.40504,93477.0,93467.0,0.00016049]
[1763491256234,0.04424,93468.0,93467.0,0.02342049]
[1763491256430,0.04424,93468.0,93467.0,0.04597049]
[1763491257736,0.04424,93468.0,93467.0,0.04697049]
[1763491258634,0.02108,93468.0,93467.0,0.04697049]
[1763491260334,0.04397,93468.0,93467.0,0.04697049]
[1763491260938,0.40477,93468.0,93467.0,0.00116049]
[1763491261130,0.40477,93468.0,93467.0,4.9e-07]
[1763491261330,0.40477,93468.0,93451.0,0.25856]
[1763491261331,0.02289,93453.0,93451.0,0.25856]
[1763491261532,0.04394,93452.0,93451.0,0.25856]
[1763491262428,0.04394,93452.0,93451.0,0.28264]
[1763491262939,0.04394,93452.0,93451.0,0.26056]
[1763491263138,0.40474,93452.0,93451.0,0.001]
[1763491263436,0.40474,93452.0,93442.0,0.15176559]
[1763491263437,0.00219803,93450.0,93442.0,0.15176559]
[1763491263641,0.04613803,93450.0,93449.0,0.1301571]
[1763491264034,0.04613803,93450.0,93449.0,0.1515971]
[1763491265328,0.04613803,93450.0,93449.0,0.1301571]
[1763491265533,0.04613803,93450.0,93442.0,0.02324049]
[1763491265534,0.04294,93443.0,93442.0,0.02324049]
[1763491265735,0.04194,93443.0,93442.0,0.00016049]
[1763491266940,0.04194,93443.0,93442.0,0.02524049]
[1763491267344,0.04194,93443.0,93442.0,0.04668049]
[1763491267842,0.04194,93443.0,93442.0,0.04768049]
[1763491268230,0.04394,93455.0,93454.0,0.1070703]
[1763491268436,0.04394,93455.0,93454.0,0.1515903]
[1763491269347,0.04394,93455.0,93454.0,0.1525903]
[1763491269634,0.04394,93455.0,93454.0,0.1535903]
[1763491269840,0.04394,93455.0,93454.0,0.04652]
[1763491270237,0.04394,93455.0,93454.0,0.02508]
[1763491270628,0.04394,93455.0,93454.0,0.002]
[1763491272940,0.00016019,93461.0,93460.0,0.1515845]
[1763491273246,0.04394,93471.0,93460.0,0.3608]
[1763491273432,0.04394,93467.0,93466.0,0.1301374]
[1763491273629,0.04394,93467.0,93466.0,0.02308]
[1763491273841,0.04394,93466.0,93465.0,0.25852]
[1763491274043,0.04394,93457.0,93456.0,0.00016049]
[1763491274339,0.00219803,93460.0,93459.0,0.04452]
[1763491274932,0.04613803,93460.0,93459.0,0.04452]
[1763491275136,0.04513803,93460.0,93459.0,0.04452]
[1763491275348,0.3608,93466.0,93465.0,0.04452]
[1763491275547,0.3608,93466.0,93465.0,0.1515788]
[1763491276332,0.38185,93466.0,93465.0,0.15304494]
[1763491276933,0.40474,93466.0,93465.0,0.00146614]
[1763491277133,0.37903656,93466.0,93465.0,0.00146614]
[1763491278145,0.48609416,93466.0,93465.0,0.00146614]
[1763491278646,0.37903656,93466.0,93465.0,0.00146614]
[1763491278848,0.37903656,93466.0,93465.0,0.02454614]
[1763491279050,0.37903656,93466.0,93465.0,0.04598614]
[1763491279546,0.35614656,93466.0,93465.0,0.04698614]
[1763491279740,0.33509656,93466.0,93465.0,0.04698614]
[1763491280147,0.37903656,93466.0,93465.0,0.04798614]
[1763491280856,0.37903656,93466.0,93465.0,0.00346614]
[1763491282140,0.37903656,93466.0,93465.0,0.04827614]
[1763491282742,0.37903656,93466.0,93465.0,0.04727614]
[1763491282942,0.37903656,93466.0,93465.0,0.04827614]
[1763491283748,0.37903656,93466.0,93465.0,0.00346614]
[1763491285142,0.35333332,93466.0,93465.0,0.00346614]
[1763491285748,0.37667049,93466.0,93465.0,0.00346614]
[1763491285948,0.35333332,93466.0,93465.0,0.00346614]
[1763491286251,0.37667063,93466.0,93465.0,0.00346614]
[1763491286453,0.35333332,93466.0,93465.0,0.00346614]
[1763491287652,0.46039092,93466.0,93465.0,0.00346614]
[1763491290151,0.35333332,93466.0,93465.0,0.00346614]
[1763491290754,0.35333332,93466.0,93465.0,0.04915614]
[1763491290953,0.35333332,93466.0,93465.0,0.00346614]
[1763491291455,0.35333332,93466.0,93465.0,0.02598614]
[1763491292051,0.35333332,93466.0,93465.0,0.02398614]
[1763491293357,0.35333332,93466.0,93465.0,0.04715614]
[1763491294057,0.35333332,93466.0,93465.0,0.00146614]
[1763491299147,0.1505379,93457.0,93456.0,0.00016049]
[1763491299351,0.1505379,93457.0,93438.0,0.1070886]
[1763491299352,0.04347,93449.0,93448.0,0.1070774]
[1763491299747,0.04347,93449.0,93440.0,0.25932]
[1763491299748,0.04347,93443.0,93442.0,0.07684205]
[1763491299952,0.04347,93441.0,93440.0,0.4120974]
[1763491300147,0.02246,93441.0,93440.0,0.4120974]
[1763491300350,0.02146,93441.0,93440.0,0.4120974]
[1763491300857,0.02046,93441.0,93440.0,0.4120974]
[1763491301564,0.01946,93441.0,93440.0,0.4130974]
[1763491302157,0.40427,93449.0,93448.0,0.1527682]
[1763491302461,0.3608,93449.0,93448.0,0.1527682]
[1763491302662,0.40427,93449.0,93448.0,0.1527682]
[1763491303258,0.40427,93449.0,93448.0,0.1537682]
[1763491303563,0.40427,93449.0,93448.0,0.1080782]
[1763491303764,0.40427,93449.0,93448.0,0.1537682]
[1763491304157,0.04347,93449.0,93448.0,0.1537682]
[1763491304471,0.00016049,93450.0,93449.0,0.04569]
[1763491305760,0.38326,93467.0,93466.0,0.04569]
[1763491305961,0.40427,93467.0,93466.0,0.04569]
[1763491314380,0.38326,93467.0,93466.0,0.04569]
[1763491314672,0.40427,93467.0,93466.0,0.04569]
[1763491315264,0.40427,93467.0,93466.0,0.1527476]
[1763491315466,0.40427,93467.0,93466.0,0.1295776]
[1763491315666,0.40427,93467.0,93466.0,0.1527476]
[1763491316059,0.04347,93458.0,93457.0,0.02333049]
[1763491316264,0.04347,93458.0,93457.0,0.15291839]
[1763491316462,0.0019307,93460.0,93459.0,0.04569]
[1763491317065,0.0243907,93460.0,93459.0,0.04569]
[1763491317562,0.0454007,93460.0,93459.0,0.04569]
[1763491318372,0.0464207,93460.0,93459.0,0.04569]
[1763491318973,0.0464207,93460.0,93459.0,0.04669]
[1763491319775,0.0235107,93460.0,93459.0,0.04669]
[1763491320068,0.0455407,93460.0,93459.0,0.04669]
[1763491321373,0.1506613,93472.0,93471.0,0.02147]
[1763491321576,0.04361,93471.0,93470.0,0.001]
[1763491322076,0.04361,93471.0,93470.0,0.02247]
[1763491322279,0.1525937,93470.0,93469.0,0.03831275]
[1763491322463,0.02752,93469.0,93468.0,0.00331275]
[1763491322779,0.1070656,93459.0,93446.0,0.07684205]
[1763491322966,0.1070656,93459.0,93439.0,0.09644774]
[1763491322967,0.3608,93458.0,93448.0,0.1636874]
[1763491323167,0.3608,93449.0,93448.0,0.05661]
[1763491324782,0.3608,93449.0,93448.0,0.01371]
[1763491324966,0.3608,93449.0,93448.0,0.05761]
[1763491325968,0.1070863,93441.0,93439.0,0.00016049]
[1763491326170,0.4678863,93441.0,93439.0,0.00016049]
[1763491326468,0.0019307,93440.0,93439.0,4.9e-07]
[1763491326666,0.1070931,93435.0,93432.0,0.01371]
[1763491327081,0.1070931,93435.0,93423.0,0.365346]
[1763491327271,0.1071046,93425.0,93419.0,0.3608]
[1763491327467,0.1071046,93425.0,93424.0,0.1637157]
[1763491328166,0.3608,93431.0,93428.0,0.149999]
[1763491328372,0.1071046,93425.0,93424.0,0.03518]
[1763491328774,0.1071046,93425.0,93424.0,0.01471]
[1763491329180,0.1071046,93425.0,93424.0,0.001]
[1763491329380,0.1071138,93417.0,93416.0,0.01371]
[1763491329867,0.1071138,93417.0,93415.0,0.00016049]
[1763491330274,0.1071138,93417.0,93416.0,0.01371]
[1763491330780,0.1071138,93417.0,93416.0,0.05661]
[1763491331684,0.0019307,93420.0,93419.0,0.1500115]
[1763491334676,9.756e-05,93430.0,93429.0,0.02147]
[1763491334886,0.00202826,93430.0,93429.0,0.05661]
[1763491335686,0.10912716,93430.0,93429.0,0.05661]
[1763491336375,0.10912716,93430.0,93429.0,0.03518]
[1763491336578,0.10912716,93430.0,93429.0,0.05661]
[1763491336779,0.10912716,93430.0,93429.0,0.01371]
[1763491336979,0.10912716,93430.0,93429.0,0.03518]
[1763491337181,0.10912716,93430.0,93429.0,0.05661]
[1763491337988,0.00202826,93430.0,93429.0,0.05661]
[1763491340186,0.00202826,93430.0,93416.0,0.01371]
[1763491340384,0.1071138,93417.0,93416.0,0.05661]
[1763491341085,0.1071138,93417.0,93416.0,0.01371]
[1763491341891,0.1071138,93417.0,93416.0,0.03549]
[1763491342994,0.1071138,93417.0,93416.0,0.0576]
[1763491344990,0.1071138,93417.0,93415.0,0.00016049]
[1763491345193,0.3608,93418.0,93417.0,0.04389]
[1763491346094,0.0019307,93420.0,93419.0,0.04389]
[1763491351000,9.756e-05,93430.0,93429.0,0.05688]
[1763491351186,0.00202826,93430.0,93429.0,0.16398]
[1763491352390,0.00202826,93430.0,93429.0,0.05688]
[1763491355601,0.10912716,93430.0,93429.0,0.05688]
[1763491358399,0.10912716,93430.0,93429.0,0.01371]
[1763491358605,0.10912716,93430.0,93429.0,0.05688]
[1763491360005,0.10912716,93430.0,93429.0,0.01371]
[1763491360206,0.10912716,93430.0,93429.0,0.03564]
[1763491360899,0.10912716,93430.0,93429.0,0.01371]
[1763491361302,0.1071035,93426.0,93425.0,0.05734672]
[1763491361502,0.4679035,93426.0,93425.0,0.05734672]
[1763491362006,0.4679035,93426.0,93425.0,0.04317]
[1763491362206,0.4679035,93426.0,93425.0,0.1502746]
[1763491362512,0.4679035,93426.0,93425.0,0.20762132]
[1763491363014,0.4679035,93426.0,93425.0,0.1502746]
[1763491363816,0.4679035,93426.0,93425.0,0.04317]
[1763491365104,0.4679035,93426.0,93425.0,0.10080248]
[1763491366911,0.4679035,93426.0,93425.0,0.04317]
[1763491367113,0.4679035,93426.0,93425.0,0.10080248]
[1763491367710,0.4679035,93426.0,93425.0,0.04317]
[1763491367917,0.4679035,93426.0,93424.0,0.01371]
[1763491368116,0.4679035,93426.0,93424.0,0.03564]
[1763491368316,0.4679035,93426.0,93424.0,0.05688]
[1763491369916,0.4679035,93426.0,93425.0,0.04317]
[1763491370614,0.1071126,93418.0,93417.0,0.05763248]
[1763491370912,0.4679126,93418.0,93417.0,0.10080248]
[1763491371307,0.4679126,93418.0,93417.0,0.04317]
[1763491374514,0.4679126,93418.0,93417.0,0.1502838]
[1763491375214,0.4679126,93418.0,93417.0,0.04317]
[1763491376016,0.4679126,93418.0,93416.0,0.01307]
[1763491376417,0.4679126,93418.0,93416.0,0.05624]
[1763491376818,0.4679126,93418.0,93415.0,0.00016049]
[1763491377814,0.4679126,93418.0,93417.0,0.04577]
[1763491378323,0.49193971,93418.0,93417.0,0.04577]
[1763491379825,0.49193971,93418.0,93417.0,0.02296]
[1763491380526,0.4679126,93418.0,93415.0,0.00016049]
[1763491381117,0.4679126,93418.0,93417.0,0.04577]
[1763491381425,0.4679126,93418.0,93416.0,0.03577]
[1763491382218,0.4679126,93418.0,93416.0,0.01281]
[1763491382414,0.02402003,93417.0,93415.0,0.00016049]
[1763491382619,0.1071229,93409.0,93406.0,0.00026765]
[1763491382922,0.1071298,93403.0,93401.0,0.05763764]
[1763491383126,0.1071298,93403.0,93395.0,0.05763764]
[1763491383127,0.1071367,93397.0,93395.0,0.05763764]
[1763491383330,0.107139,93395.0,93394.0,0.05763764]
[1763491383625,0.1090754,93390.0,93387.0,0.05763764]
[1763491383823,0.3608,93388.0,93387.0,0.04577]
[1763491384333,0.3608,93388.0,93387.0,0.02296]
[1763491384625,0.3608,93388.0,93387.0,0.04577]
[1763491385826,0.1071482,93387.0,93385.0,0.00028251]
[1763491386019,0.3608,93386.0,93385.0,0.00028251]
[1763491386225,0.3608,93386.0,93385.0,0.04605251]
[1763491386727,0.1071585,93378.0,93372.0,0.16480284]
[1763491386922,0.3608,93377.0,93376.0,0.05858]
[1763491387824,0.36088074,93377.0,93376.0,0.05858]
[1763491390518,0.36088074,93377.0,93376.0,0.01281]
[1763491391124,0.36088074,93377.0,93376.0,0.03577]
[1763491391627,0.36088074,93377.0,93376.0,0.05858]
[1763491391822,0.36088074,93377.0,93376.0,0.01281]
[1763491392027,0.1071688,93369.0,93368.0,0.05858]
[1763491392221,0.4679688,93369.0,93368.0,0.05858]
[1763491396235,0.3608,93369.0,93368.0,0.05858]
[1763491406440,0.3608,93369.0,93368.0,0.03485]
[1763491406834,0.3608,93369.0,93368.0,0.05732]
[1763491407345,0.10717,93368.0,93367.0,0.00016058]
[1763491407937,0.10717,93368.0,93367.0,0.04469058]
[1763491408334,0.10717,93368.0,93367.0,8e-08]
[1763491408536,0.1071929,93348.0,93341.0,0.05763764]
[1763491408738,0.3608,93346.0,93345.0,0.1645364]
[1763491409044,0.00013638,93347.0,93346.0,0.04453]
[1763491410339,0.00013638,93347.0,93346.0,0.40533]
[1763491410536,0.00016067,93356.0,93355.0,0.1517149]
[1763491410736,0.03846663,93382.0,93368.0,0.16508]
[1763491410931,0.0019307,93370.0,93368.0,0.16508]
[1763491411742,0.36090549,93369.0,93368.0,0.16508]
[1763491412736,0.00010549,93369.0,93368.0,0.16508]
[1763491412937,0.00010549,93369.0,93368.0,0.22276749]
[1763491413132,0.00010549,93369.0,93368.0,0.16508]
[1763491417248,0.00016067,93378.0,93377.0,0.04453]
[1763491418337,0.00216067,93378.0,93377.0,0.04453]
[1763491418538,6.7e-07,93378.0,93377.0,0.04453]
[1763491418738,0.3608,93393.0,93383.0,0.04453]
[1763491418933,0.0019307,93390.0,93383.0,0.04453]
[1763491419139,0.0019307,93390.0,93383.0,0.1516828]
[1763491419538,0.36096067,93393.0,93383.0,0.1516828]
[1763491419743,0.1071452,93390.0,93383.0,0.1516828]
[1763491419946,0.3618,93384.0,93383.0,0.1516828]
[1763491424455,0.3608,93384.0,93383.0,0.1516828]
[1763491425356,0.36096067,93393.0,93392.0,0.1650524]
[1763491425741,0.00016067,93393.0,93392.0,0.1650524]
[1763491425954,6.7e-07,93393.0,93392.0,0.1650524]
[1763491427146,6.7e-07,93393.0,93392.0,0.22274749]
[1763491427546,6.7e-07,93393.0,93392.0,0.1650524]
[1763491428654,6.7e-07,93393.0,93392.0,0.1660524]
[1763491429155,6.7e-07,93393.0,93392.0,0.1650524]
[1763491430654,6.7e-07,93393.0,93392.0,0.05791]
[1763491430849,6.7e-07,93393.0,93392.0,0.1650524]
[1763491431557,6.7e-07,93393.0,93392.0,0.05891]
[1763491437757,0.3608,93405.0,93404.0,0.04531]
[1763491438154,0.3608,93405.0,93404.0,0.1524385]
[1763491439666,0.4679273,93405.0,93404.0,0.1524385]
[1763491439872,0.4679273,93405.0,93404.0,0.04531]
[1763491440271,0.3608,93405.0,93404.0,0.04531]
[1763491443551,0.00016067,93414.0,93413.0,0.1529682]
[1763491443755,0.3608,93424.0,93423.0,0.1529567]
[1763491443954,0.16439685,93448.0,93441.0,0.04585]
[1763491443955,0.3608,93442.0,93441.0,0.04585]
[1763491446154,0.1070861,93441.0,93440.0,0.001]
[1763491446358,0.1060861,93441.0,93440.0,0.001]
[1763491446662,0.1060861,93441.0,93440.0,0.04685]
[1763491446868,0.13016429,93441.0,93440.0,0.04685]
[1763491447672,0.13016429,93441.0,93440.0,0.001]
[1763491448260,0.1070907,93437.0,93436.0,0.03597]
[1763491448461,0.1070907,93437.0,93436.0,0.01288]
[1763491449269,0.1070907,93437.0,93436.0,0.03597]
[1763491449668,0.1070907,93437.0,93436.0,0.05873]
[1763491449964,0.1070907,93437.0,93436.0,0.03597]
[1763491450161,0.1070952,93433.0,93432.0,0.02325058]
[1763491450367,0.4678952,93433.0,93432.0,0.04601058]
[1763491450767,0.4678952,93433.0,93432.0,0.00016058]
[1763491450959,0.4678952,93433.0,93432.0,0.03613058]
[1763491451558,0.4678952,93433.0,93432.0,0.05889058]
[1763491452161,0.4678952,93433.0,93432.0,0.01304058]
[1763491452558,0.4678952,93433.0,93432.0,0.05889058]
[1763491454060,0.4678952,93433.0,93432.0,0.01304058]
[1763491454764,0.4678952,93433.0,93432.0,0.05889058]
[1763491454964,0.4678952,93433.0,93432.0,0.03613058]
[1763491455769,0.4678952,93433.0,93432.0,0.01304058]
[1763491456071,0.4678952,93433.0,93432.0,0.05889058]
[1763491456475,0.4678952,93433.0,93432.0,0.00016058]
[1763491456972,0.4678952,93433.0,93410.0,0.1147705]
[1763491456973,0.1071136,93417.0,93416.0,0.1658446]
[1763491459166,0.1071136,93417.0,93416.0,0.05873]
[1763491459376,0.1071136,93417.0,93416.0,0.05973]
[1763491460174,0.1071136,93417.0,93416.0,0.001]
[1763491460567,0.3653936,93417.0,93416.0,0.001]
[1763491460968,0.3653936,93417.0,93416.0,0.04649]
[1763491462071,0.3608,93418.0,93416.0,0.04649]
[1763491462072,0.3608,93418.0,93417.0,0.1519936]
[1763491463276,0.3608,93418.0,93417.0,0.04488]
[1763491463475,0.3608,93418.0,93417.0,0.04588]
[1763491463676,0.3608,93418.0,93417.0,0.02348]
[1763491463868,0.3608,93418.0,93417.0,0.001]
[1763491464069,0.3608,93418.0,93417.0,0.04588]
[1763491464677,0.3608,93418.0,93417.0,0.001]
[1763491465464,0.3608,93418.0,93417.0,0.04588]
[1763491466784,0.3608,93418.0,93417.0,0.001]
[1763491467170,0.3608,93418.0,93417.0,0.04502]
[1763491467368,0.3608,93418.0,93417.0,0.001]
[1763491467973,0.3608,93418.0,93417.0,0.02298]
[1763491468475,0.3608,93418.0,93417.0,0.04502]
[1763491474672,0.0019307,93420.0,93419.0,0.04402]
[1763491475980,0.0019307,93420.0,93419.0,0.04502]
[1763491476876,0.0019307,93420.0,93419.0,0.10271509]
[1763491477575,0.0019307,93420.0,93419.0,0.04502]
[1763491478476,0.0019307,93420.0,93419.0,0.001]
[1763491478681,0.3627307,93420.0,93419.0,0.001]
[1763491479185,0.38677803,93420.0,93419.0,0.001]
[1763491480580,0.1071216,93410.0,93409.0,0.10171509]
[1763491480779,0.4698523,93410.0,93409.0,0.10171509]
[1763491481895,0.4698523,93410.0,93409.0,0.05769509]
[1763491482077,0.4698523,93410.0,93409.0,0.10171509]
[1763491482277,0.4698523,93410.0,93409.0,0.10165925]
[1763491483278,0.4698523,93410.0,93409.0,0.04402]
[1763491484383,0.3627307,93410.0,93409.0,0.04402]
[1763491489590,0.3627307,93410.0,93407.0,0.00016058]
[1763491489591,0.1071227,93409.0,93407.0,0.00016058]
[1763491489791,0.1071227,93409.0,93408.0,0.01275]
[1763491489990,0.1071227,93409.0,93408.0,0.03473]
[1763491491097,0.1071227,93409.0,93408.0,0.09240962]
[1763491491390,0.1071227,93409.0,93408.0,0.11444962]
[1763491492685,0.4679227,93409.0,93408.0,0.1144373]
[1763491492994,0.4679227,93409.0,93408.0,0.05677]
[1763491493198,0.4679227,93409.0,93408.0,0.1144371]
[1763491495086,0.4679227,93409.0,93408.0,0.05677]
[1763491495281,0.3608,93409.0,93408.0,0.11444955]
[1763491495487,0.3608,93409.0,93408.0,0.05677]
[1763491496084,0.0019307,93410.0,93409.0,0.1511429]
[1763491496594,0.1090536,93410.0,93409.0,0.04402]
[1763491496793,0.1090536,93410.0,93409.0,0.10169722]
[1763491496982,0.1090536,93410.0,93409.0,0.04402]
[1763491500286,0.0019307,93410.0,93409.0,0.04402]
[1763491500482,0.0019307,93410.0,93409.0,0.1511429]
[1763491501097,0.0019307,93410.0,93409.0,0.04402]
[1763491501287,0.0019307,93410.0,93409.0,0.02198]
[1763491501696,0.0019307,93410.0,93409.0,0.04334]
[1763491501991,0.1071229,93409.0,93408.0,0.05768694]
[1763491502296,0.1071229,93409.0,93408.0,0.09377694]
[1763491502297,0.4679229,93409.0,93408.0,0.09377694]
[1763491503289,0.4679229,93409.0,93408.0,0.1645741]
[1763491503695,0.3608,93409.0,93408.0,0.1645741]
[1763491504289,0.1071241,93408.0,93407.0,0.00016058]
[1763491504488,0.1071241,93408.0,93407.0,0.0578901]
[1763491504700,0.13102111,93408.0,93407.0,0.00016058]
[1763491506699,0.13202111,93408.0,93407.0,0.00016058]
[1763491508189,0.107131,93402.0,93400.0,0.05772952]
[1763491508501,0.1071333,93400.0,93399.0,8.393e-05]
[1763491508693,0.109064,93400.0,93399.0,8.393e-05]
[1763491508997,0.109064,93400.0,93387.0,0.08959205]
[1763491508998,0.1071413,93393.0,93392.0,0.05772952]
[1763491509304,0.4679413,93393.0,93391.0,0.05772952]
[1763491509493,0.1071447,93390.0,93389.0,0.08088952]
[1763491509691,0.1090754,93390.0,93389.0,0.10224952]
[1763491509896,0.00201463,93390.0,93389.0,0.10224952]
[1763491510099,0.00201463,93390.0,93389.0,0.04452]
[1763491512600,0.3608,93399.0,93398.0,0.1516556]
[1763491512786,0.3608,93399.0,93398.0,0.20931065]
[1763491512990,0.3608,93399.0,93398.0,0.1516556]
[1763491513198,0.0019307,93400.0,93399.0,0.04452]
[1763491514003,0.00016058,93402.0,93401.0,0.04452]
[1763491515189,0.3608,93418.0,93417.0,0.1516338]
[1763491515391,0.40507,93435.0,93434.0,0.04452]
[1763491515603,0.42872713,93435.0,93434.0,0.04452]
[1763491515899,0.40507,93435.0,93434.0,0.04452]
[1763491516204,0.40507,93435.0,93434.0,0.02316]
[1763491517099,0.04427,93435.0,93434.0,0.04452]
[1763491517301,0.001,93435.0,93434.0,0.04452]
[1763491517802,0.151356,93442.0,93441.0,0.04452]
[1763491517997,0.1513654,93433.0,93432.0,0.05745]
[1763491518408,0.38288,93434.0,93433.0,0.04452]
[1763491518596,0.40507,93434.0,93433.0,0.04452]
[1763491519309,0.38288,93434.0,93433.0,0.04452]
[1763491519498,0.40507,93434.0,93433.0,0.04452]
[1763491520497,0.40607,93434.0,93433.0,0.04452]
[1763491521401,0.04391,93431.0,93430.0,0.0238]
[1763491521798,0.04391,93431.0,93430.0,0.001]
[1763491521997,0.1510135,93426.0,93419.0,0.05762633]
[1763491522297,0.1510135,93426.0,93416.0,0.13163]
[1763491522298,0.5118135,93426.0,93425.0,0.04606058]
[1763491523097,0.5118135,93426.0,93425.0,0.00016058]
[1763491523606,0.5118135,93426.0,93425.0,0.02296058]
[1763491523906,0.5118135,93426.0,93425.0,0.04606058]
[1763491524209,0.5118135,93426.0,93425.0,0.02296058]
[1763491524397,0.5118135,93426.0,93425.0,0.00016058]
[1763491525206,0.5128135,93426.0,93425.0,0.00016058]
[1763491527610,0.5118135,93426.0,93425.0,0.00016058]
[1763491527807,0.5128135,93426.0,93425.0,0.00016058]